fUST/lending_fUST_20250812
["ID","MTS","AMOUNT","RATE_DAILY","PERIOD"]
[378716780,1754989846504,-460.0,0.00018646,2]
[378716782,1754989846513,-460.0,0.00018646,2]
[378716784,1754989846525,-460.0,0.00018646,2]
[378716786,1754989846534,-460.0,0.00018646,2]
[378716788,1754989846542,-460.0,0.00018646,2]
[378716790,1754989846552,-460.0,0.00018646,2]
[378716792,1754989846561,-460.0,0.00018646,2]
[378716794,1754989846570,-460.0,0.00018646,2]
[378716796,1754989846580,-460.0,0.00018646,2]
[378716799,1754989846590,-460.0,0.00018646,2]
[378716800,1754989846599,-460.0,0.00018646,2]
[378716803,1754989846609,-460.0,0.00018646,2]
[378716804,1754989846619,-460.0,0.00018646,2]
[378716806,1754989846628,-460.0,0.00018646,2]
[378716808,1754989846638,-460.0,0.00018646,2]
[378716810,1754989846647,-460.0,0.00018646,2]
[378716812,1754989846657,-837.98,0.00018646,2]
[378716815,1754989846667,-460.0,0.00018646,2]
[378716817,1754989846678,-460.0,0.00018646,2]
[378716819,1754989846690,-460.0,0.00018646,2]
[378716821,1754989846699,-500.0,0.00018646,2]
[378716823,1754989846709,-460.0,0.00018646,2]
[378716825,1754989846719,-460.0,0.00018646,2]
[378716827,1754989846729,-164.665185,0.00018646,2]
[378716829,1754989846739,-460.0,0.00018646,2]
[378716831,1754989846749,-153.650219,0.00018646,2]
[378716833,1754989846759,-460.0,0.00018646,2]
[378716835,1754989846771,-460.69610991,0.00018646,2]
[378716837,1754989846780,-460.0,0.00018646,2]
[378716839,1754989846790,-460.0,0.00018646,2]
[378716841,1754989846800,-460.0,0.00018646,2]
[378716843,1754989846809,-460.0,0.00018646,2]
[378716845,1754989846818,-460.0,0.00018646,2]
[378716847,1754989846828,-151.0,0.00018646,2]
[378716849,1754989846837,-460.0,0.00018646,2]
[378716851,1754989846847,-460.0,0.00018646,2]
[378716853,1754989846857,-460.0,0.00018646,2]
[378716855,1754989846868,-460.0,0.00018646,2]
[378716857,1754989846878,-151.0,0.00018646,2]
[378716859,1754989846887,-151.0,0.00018646,2]
[378716861,1754989846896,-151.0,0.00018646,2]
[378716863,1754989846906,-3457.047158,0.00018646,2]
[378716865,1754989846916,-3457.047158,0.00018646,2]
[378716867,1754989846925,-151.0,0.00018646,2]
[378716869,1754989846935,-151.0,0.00018646,2]
[378716872,1754989846944,-151.0,0.00018646,2]
[378716874,1754989846954,-151.0,0.00018646,2]
[378716876,1754989846963,-151.0,0.00018646,2]
[378716878,1754989846972,-151.0,0.00018646,2]
[378716880,1754989846982,-151.0,0.00018646,2]
[378716882,1754989846991,-527.48,0.00018647,2]
[378716884,1754989847001,-527.48,0.00018647,2]
[378716886,1754989847010,-154.0923824,0.00018647,2]
[378716888,1754989847021,-500.0,0.00018647,2]
[378716890,1754989847031,-500.0,0.00018647,2]
[378716892,1754989847040,-460.0,0.00018647,2]
[378716894,1754989847050,-460.0,0.00018647,2]
[378716896,1754989847060,-460.0,0.00018647,2]
[378716898,1754989847070,-460.0,0.00018647,2]
[378716900,1754989847080,-151.0,0.00018647,2]
[378716902,1754989847090,-151.0,0.00018647,2]
[378716904,1754989847099,-151.0,0.00018647,2]
[378716906,1754989847109,-151.0,0.00018647,2]
[378716908,1754989847119,-527.48,0.00018648,2]
[378716910,1754989847128,-527.48,0.00018648,2]
[378716912,1754989847137,-527.48,0.00018648,2]
[378716914,1754989847146,-527.48,0.00018648,2]
[378716916,1754989847156,-527.48,0.00018648,2]
[378716918,1754989847165,-527.48,0.00018648,2]
[378716920,1754989847175,-500.0,0.00018648,2]
[378716923,1754989847184,-500.0,0.00018648,2]
[378716924,1754989847193,-500.0,0.00018648,2]
[378716927,1754989847203,-500.0,0.00018648,2]
[378716929,1754989847212,-500.0,0.00018648,2]
[378716931,1754989847223,-500.0,0.00018648,2]
[378716933,1754989847233,-3017.534926,0.00018648,2]
[378716935,1754989847242,-151.0,0.00018648,2]
[378716937,1754989847252,-152.879369,0.00018648,2]
[378716939,1754989847261,-151.0,0.00018648,2]
[378716941,1754989847272,-151.0,0.00018648,2]
[378716943,1754989847284,-151.0,0.00018648,2]
[378716945,1754989847294,-151.0,0.00018648,2]
[378716947,1754989847304,-3457.047158,0.00018648,2]
[378716949,1754989847313,-3457.047158,0.00018648,2]
[378716952,1754989847323,-276.297891,0.00018649,2]
[378716954,1754989847333,-151.0,0.00018649,2]
[378716956,1754989847343,-527.48,0.0001865,2]
[378716958,1754989847352,-500.0,0.0001865,2]
[378716960,1754989847362,-151.0,0.00018657,2]
[378716962,1754989847372,-500.0,0.00018657,2]
[378716964,1754989847381,-151.0,0.00018657,2]
[378716966,1754989847391,-500.0,0.00018657,2]
[378716968,1754989847401,-151.0,0.00018657,2]
[378716970,1754989847410,-500.0,0.00018657,2]
[378716972,1754989847420,-500.0,0.00018657,2]
[378716974,1754989847429,-3056.0,0.00018657,2]
[378716976,1754989847439,-151.0,0.00018657,2]
[378716978,1754989847449,-151.0,0.00018657,2]
[378716980,1754989847458,-151.0,0.00018657,2]
[378716982,1754989847468,-203.47653186,0.00018657,2]
[378716984,1754989847478,-500.0,0.00018657,2]
[378716986,1754989847488,-500.0,0.00018657,2]
[378716988,1754989847498,-500.0,0.00018657,2]
[378716990,1754989847507,-151.0,0.00018657,2]
[378716992,1754989847519,-151.0,0.00018657,2]
[378716994,1754989847529,-151.0,0.00018657,2]
[378716996,1754989847538,-500.0,0.00018657,2]
[378716998,1754989847548,-151.0,0.00018657,2]
[378717000,1754989847557,-151.0,0.00018657,2]
[378717002,1754989847566,-151.0,0.00018657,2]
[378717004,1754989847576,-151.0,0.00018657,2]
[378717006,1754989847586,-151.0,0.00018657,2]
[378717008,1754989847596,-151.0,0.00018657,2]
[378717010,1754989847606,-205.99700286,0.00018657,2]
[378717012,1754989847616,-500.0,0.00018657,2]
[378717014,1754989847626,-158.64028859,0.00018657,2]
[378717016,1754989847636,-500.0,0.00018657,2]
[378717018,1754989847646,-500.0,0.00018657,2]
[378717020,1754989847656,-151.0,0.00018657,2]
[378717022,1754989847667,-151.61181507,0.00018657,2]
[378717024,1754989847678,-527.48,0.00018672,2]
[378717026,1754989847690,-500.0,0.00018672,2]
[378717029,1754989847702,-151.0,0.00018672,2]
[378717031,1754989847712,-500.0,0.00018673,2]
[378717033,1754989847723,-500.0,0.00018673,2]
[378717035,1754989847733,-500.0,0.00018673,2]
[378717037,1754989847742,-276.8535222,0.00018673,2]
[378717039,1754989847752,-500.0,0.00018673,2]
[378717041,1754989847762,-500.50974004,0.00018673,2]
[378717043,1754989847773,-500.50977512,0.00018673,2]
[378717045,1754989847783,-500.0,0.00018673,2]
[378717047,1754989847792,-500.0,0.00018673,2]
[378717049,1754989847802,-500.0,0.00018673,2]
[378717051,1754989847811,-500.0,0.00018673,2]
[378717053,1754989847822,-542.61847519,0.00018673,2]
[378717055,1754989847831,-500.0,0.00018673,2]
[378717057,1754989847841,-500.0,0.00018673,2]
[378717059,1754989847850,-500.0,0.00018673,2]
[378717061,1754989847860,-500.0,0.00018673,2]
[378717063,1754989847870,-500.79344237,0.00018673,2]
[378717065,1754989847879,-500.0,0.00018673,2]
[378717067,1754989847889,-500.0,0.00018673,2]
[378717069,1754989847898,-500.0,0.00018673,2]
[378717071,1754989847908,-360.10275124,0.00018673,2]
[378717073,1754989847917,-500.0,0.00018673,2]
[378717075,1754989847926,-500.0,0.00018673,2]
[378717077,1754989847936,-500.0,0.00018673,2]
[378717079,1754989847945,-420.18874009,0.00018673,2]
[378717081,1754989847955,-500.0,0.00018673,2]
[378717083,1754989847964,-212.08568733,0.00018673,2]
[378717085,1754989847974,-500.2933505,0.00018673,2]
[378717087,1754989847983,-516.60603465,0.00018673,2]
[378717089,1754989847993,-500.0,0.00018673,2]
[378717091,1754989848003,-500.0,0.00018673,2]
[378717093,1754989848013,-515.75468285,0.00018673,2]
[378717095,1754989848024,-500.0,0.00018673,2]
[378717096,1754989848034,-155.5848548,0.00018673,2]
[378717097,1754989848043,-500.0,0.00018673,2]
[378717098,1754989848054,-500.0,0.00018673,2]
[378717099,1754989848063,-500.0,0.00018673,2]
[378717100,1754989848074,-500.0,0.00018673,2]
[378717101,1754989848085,-503.33007518,0.00018673,2]
[378717102,1754989848095,-500.77869479,0.00018673,2]
[378717103,1754989848105,-500.0,0.00018673,2]
[378717104,1754989848115,-500.37522979,0.00018673,2]
[378717105,1754989848124,-358.93501628,0.00018673,2]
[378717106,1754989848134,-500.0,0.00018673,2]
[378717107,1754989848143,-160.1817426,0.00018673,2]
[378717109,1754989848153,-500.41880227,0.00018673,2]
[378717111,1754989848163,-500.0,0.00018673,2]
[378717113,1754989848173,-158.08822894,0.00018673,2]
[378717115,1754989848183,-500.0,0.00018673,2]
[378717117,1754989848193,-500.0,0.00018673,2]
[378717119,1754989848204,-500.56067958,0.00018673,2]
[378717121,1754989848214,-500.0,0.00018673,2]
[378717123,1754989848224,-500.0,0.00018673,2]
[378717126,1754989848234,-500.0,0.00018673,2]
[378717128,1754989848244,-500.0,0.00018673,2]
[378717129,1754989848254,-500.0,0.00018673,2]
[378717132,1754989848264,-500.13962491,0.00018673,2]
[378717134,1754989848276,-500.0,0.00018673,2]
[378717136,1754989848285,-500.0,0.00018673,2]
[378717138,1754989848295,-500.0,0.00018673,2]
[378717140,1754989848306,-151.0,0.00018673,2]
[378717142,1754989848316,-151.0,0.00018673,2]
[378717144,1754989848326,-151.0,0.00018673,2]
[378717146,1754989848335,-151.0,0.00018673,2]
[378717148,1754989848344,-151.0,0.00018673,2]
[378717150,1754989848354,-195.11997,0.00018673,2]
[378717152,1754989848363,-151.0,0.00018673,2]
[378717154,1754989848372,-151.0,0.000187,2]
[378717156,1754989848381,-151.0,0.000187,2]
[378717158,1754989848391,-151.0,0.000187,2]
[378717160,1754989848401,-151.0,0.000187,2]
[378717162,1754989848410,-151.0,0.000187,2]
[378717164,1754989848420,-151.0,0.000187,2]
[378717166,1754989848429,-4170.90169563,0.00018726,2]
[378717168,1754989848439,-2151.0,0.00018733,2]
[378717170,1754989848448,-636.0,0.00018733,2]
[378717172,1754989848458,-971.0,0.00018733,2]
[378717174,1754989848468,-207.0,0.00018735,2]
[378717176,1754989848477,-800.0,0.00018748,2]
[378717178,1754989848488,-150.0,0.0001876,2]
[378717180,1754989848497,-150.0,0.0001876,2]
[378717182,1754989848508,-150.0,0.0001876,2]
[378717184,1754989848520,-150.0,0.0001876,2]
[378717186,1754989848531,-150.0,0.0001876,2]
[378717189,1754989848541,-352.0,0.00018784,2]
[378717191,1754989848552,-295.01610458,0.00018789,2]
[378717193,1754989848562,-151.0,0.000188,2]
[378717195,1754989848572,-151.0,0.000188,2]
[378717197,1754989848581,-151.0,0.000188,2]
[378717199,1754989848591,-151.0,0.000188,2]
[378717201,1754989848601,-151.0,0.000188,2]
[378717203,1754989848610,-500.0,0.00018808,2]
[378717205,1754989848620,-460.0,0.00018816,2]
[378717207,1754989848631,-467.0178547,0.00018816,2]
[378717209,1754989848641,-460.0,0.00018816,2]
[378717211,1754989848651,-511.44,0.00018816,2]
[378717213,1754989848661,-586.95667591,0.00018816,2]
[378717215,1754989848671,-329.41534545,0.00018816,2]
[378717217,1754989848683,-460.0,0.00018816,2]
[378717219,1754989848695,-778.07,0.00018816,2]
[378717221,1754989848704,-460.0,0.00018816,2]
[378717223,1754989848715,-695.2,0.00018816,2]
[378717225,1754989848726,-3994.01,0.00018816,2]
[378717227,1754989848736,-460.0,0.00018816,2]
[378717229,1754989848747,-460.0,0.00018816,2]
[378717231,1754989848759,-460.0,0.00018816,2]
[378717233,1754989848772,-607.67,0.00018816,2]
[378717235,1754989848782,-460.0,0.00018816,2]
[378717237,1754989848792,-460.0,0.00018816,2]
[378717240,1754989848803,-460.0,0.00018816,2]
[378717242,1754989848813,-2824.63,0.00018816,2]
[378717244,1754989848823,-496.78,0.00018816,2]
[378717246,1754989848833,-850.45,0.00018816,2]
[378717248,1754989848843,-460.0,0.00018817,2]
[378717250,1754989848853,-467.72355043,0.00018817,2]
[378717269,1754989849025,-2881.31,0.00018817,2]
[378717271,1754989849036,-624.47,0.00018817,2]
[378717273,1754989849046,-580.14,0.00018817,2]
[378717275,1754989849056,-460.0,0.00018817,2]
[378717277,1754989849067,-1844.43,0.00018817,2]
[378717279,1754989849077,-3780.92,0.00018817,2]
[378717281,1754989849088,-460.0,0.00018817,2]
[378717283,1754989849098,-852.8,0.00018817,2]
[378717285,1754989849107,-460.0,0.00018817,2]
[378717287,1754989849118,-460.0,0.00018817,2]
[378717290,1754989849128,-1219.8,0.00018817,2]
[378717292,1754989849138,-460.0,0.00018817,2]
[378717294,1754989849148,-801.24,0.00018817,2]
[378717296,1754989849157,-1272.56,0.00018817,2]
[378717298,1754989849167,-832.96,0.00018817,2]
[378717300,1754989849176,-460.0,0.00018817,2]
[378717302,1754989849186,-460.0,0.00018817,2]
[378717304,1754989849196,-460.0,0.00018817,2]
[378717306,1754989849206,-460.0,0.00018817,2]
[378717308,1754989849216,-460.0,0.00018817,2]
[378717310,1754989849226,-1059.69,0.00018817,2]
[378717312,1754989849235,-460.0,0.00018817,2]
[378717314,1754989849244,-1297.9,0.00018817,2]
[378717316,1754989849254,-1696.21,0.00018817,2]
[378717318,1754989849264,-460.0,0.00018817,2]
[378717320,1754989849274,-460.0,0.00018819,2]
[378717322,1754989849283,-460.0,0.00018819,2]
[378717324,1754989849293,-494.98500153,0.00018819,2]
[378717326,1754989849302,-460.0,0.00018819,2]
[378717328,1754989849311,-460.0,0.00018819,2]
[378717329,1754989849320,-535.01,0.00018819,2]
[378717332,1754989849329,-460.0,0.00018819,2]
[378717334,1754989849339,-460.0,0.00018819,2]
[378717336,1754989849349,-365.45277753,0.00018819,2]
[378717338,1754989849359,-460.0,0.00018819,2]
[378717340,1754989849368,-460.0,0.00018819,2]
[378717342,1754989849378,-460.0,0.00018819,2]
[378717344,1754989849387,-460.0,0.00018819,2]
[378717346,1754989849397,-856.74,0.00018819,2]
[378717348,1754989849406,-460.0,0.00018819,2]
[378717350,1754989849416,-460.0,0.00018819,2]
[378717352,1754989849425,-601.61,0.00018819,2]
[378717354,1754989849434,-622.63,0.00018819,2]
[378717356,1754989849443,-460.0,0.00018819,2]
[378717358,1754989849453,-460.0,0.00018819,2]
[378717360,1754989849463,-460.0,0.00018819,2]
[378717362,1754989849473,-462.56005547,0.00018819,2]
[378717364,1754989849482,-460.0,0.00018819,2]
[378717366,1754989849491,-460.0,0.00018819,2]
[378717368,1754989849501,-460.0,0.00018819,2]
[378717370,1754989849510,-460.0,0.00018819,2]
[378717372,1754989849521,-460.0,0.00018819,2]
[378717374,1754989849531,-460.0,0.00018819,2]
[378717376,1754989849541,-460.0,0.00018819,2]
[378717378,1754989849550,-466.21215918,0.00018819,2]
[378717380,1754989849559,-494.33187796,0.00018819,2]
[378717382,1754989849568,-582.68,0.00018819,2]
[378717384,1754989849577,-460.0,0.00018819,2]
[378717386,1754989849587,-229.956323,0.00018819,2]
[378717388,1754989849596,-460.0,0.00018819,2]
[378717390,1754989849606,-460.0,0.00018819,2]
[378717392,1754989849615,-519.88,0.00018819,2]
[378717394,1754989849625,-333.19112327,0.00018819,2]
[378717395,1754989849634,-460.0,0.00018819,2]
[378717397,1754989849643,-460.0,0.00018819,2]
[378717399,1754989849653,-460.0,0.00018819,2]
[378717401,1754989849663,-913.33,0.00018819,2]
[378717403,1754989849672,-358.85706658,0.00018819,2]
[378717405,1754989849686,-689.99,0.00018819,2]
[378717407,1754989849696,-460.0,0.00018819,2]
[378717409,1754989849705,-352.44816385,0.00018819,2]
[378717411,1754989849714,-464.05399948,0.00018819,2]
[378717413,1754989849725,-460.0,0.00018819,2]
[378717415,1754989849734,-465.29495909,0.00018819,2]
[378717417,1754989849743,-151.0,0.00018819,2]
[378717419,1754989849753,-460.0,0.00018819,2]
[378717421,1754989849762,-460.0,0.00018819,2]
[378717423,1754989849772,-460.0,0.00018819,2]
[378717425,1754989849781,-460.0,0.00018819,2]
[378717427,1754989849790,-460.0,0.00018819,2]
[378717429,1754989849799,-460.0,0.00018819,2]
[378717431,1754989849808,-460.0,0.00018819,2]
[378717433,1754989849818,-460.0,0.00018819,2]
[378717435,1754989849827,-460.0,0.00018819,2]
[378717437,1754989849836,-731.05,0.00018819,2]
[378717438,1754989849845,-460.0,0.00018819,2]
[378717441,1754989849856,-460.0,0.00018819,2]
[378717443,1754989849866,-460.0,0.00018819,2]
[378717445,1754989849875,-151.0,0.00018819,2]
[378717446,1754989849885,-460.0,0.00018819,2]
[378717448,1754989849894,-269.2830476,0.00018819,2]
[378717450,1754989849903,-460.0,0.00018819,2]
[378717452,1754989849913,-460.0,0.00018819,2]
[378717454,1754989849923,-460.0,0.00018819,2]
[378717456,1754989849932,-460.0,0.00018819,2]
[378717458,1754989849942,-460.0,0.00018819,2]
[378717460,1754989849951,-460.0,0.00018819,2]
[378717462,1754989849960,-461.25850553,0.00018819,2]
[378717464,1754989849969,-839.52,0.00018819,2]
[378717466,1754989849978,-460.0,0.00018819,2]
[378717467,1754989849987,-460.0,0.00018819,2]
[378717468,1754989849997,-980.86,0.00018819,2]
[378717469,1754989850006,-816.4,0.00018819,2]
[378717470,1754989850016,-460.0,0.00018819,2]
[378717471,1754989850025,-460.0,0.00018819,2]
[378717472,1754989850034,-575.45,0.00018819,2]
[378717473,1754989850044,-460.0,0.00018819,2]
[378717474,1754989850053,-460.0,0.00018819,2]
[378717475,1754989850062,-460.0,0.00018819,2]
[378717476,1754989850071,-460.0,0.00018819,2]
[378717477,1754989850081,-460.0,0.00018819,2]
[378717479,1754989850090,-866.6,0.00018819,2]
[378717481,1754989850099,-460.0,0.00018819,2]
[378717483,1754989850108,-460.0,0.00018819,2]
[378717485,1754989850118,-3457.047158,0.00018819,2]
[378717487,1754989850128,-638.72,0.00018819,2]
[378717489,1754989850138,-3457.047158,0.00018819,2]
[378717491,1754989850147,-460.0,0.00018819,2]
[378717493,1754989850156,-460.0,0.00018819,2]
[378717495,1754989850166,-464.84810911,0.00018819,2]
[378717497,1754989850175,-492.00049374,0.00018819,2]
[378717499,1754989850185,-460.0,0.00018819,2]
[378717501,1754989850195,-460.0,0.00018819,2]
[378717503,1754989850204,-460.0,0.00018819,2]
[378717505,1754989850214,-460.0,0.00018819,2]
[378717507,1754989850223,-460.0,0.00018819,2]
[378717509,1754989850232,-460.0,0.00018819,2]
[378717511,1754989850242,-1440.43,0.00018819,2]
[378717513,1754989850251,-460.0,0.00018819,2]
[378717515,1754989850260,-460.0,0.00018819,2]
[378717517,1754989850270,-460.0,0.00018819,2]
[378717519,1754989850279,-596.30431611,0.00018819,2]
[378717521,1754989850288,-460.0,0.00018819,2]
[378717523,1754989850298,-1053.87,0.00018819,2]
[378717525,1754989850308,-460.0,0.00018819,2]
[378717527,1754989850317,-487.97549215,0.00018819,2]
[378717529,1754989850326,-460.0,0.00018819,2]
[378717531,1754989850335,-460.0,0.00018819,2]
[378717533,1754989850344,-460.0,0.00018819,2]
[378717535,1754989850354,-461.66309952,0.00018819,2]
[378717537,1754989850363,-679.08,0.00018819,2]
[378717539,1754989850373,-461.81038637,0.00018819,2]
[378717541,1754989850382,-460.0,0.00018819,2]
[378717543,1754989850392,-460.0,0.00018819,2]
[378717545,1754989850401,-1390.83,0.00018819,2]
[378717547,1754989850411,-460.0,0.00018819,2]
[378717549,1754989850422,-466.54,0.00018819,2]
[378717551,1754989850431,-460.0,0.00018819,2]
[378717553,1754989850441,-698.56,0.00018819,2]
[378717555,1754989850451,-460.0,0.00018819,2]
[378717557,1754989850460,-460.0,0.00018819,2]
[378717559,1754989850471,-460.0,0.00018819,2]
[378717561,1754989850480,-460.0,0.00018819,2]
[378717563,1754989850490,-460.0,0.00018819,2]
[378717565,1754989850499,-600.61,0.00018819,2]
[378717567,1754989850508,-460.0,0.00018819,2]
[378717569,1754989850519,-688.97,0.00018819,2]
[378717571,1754989850528,-1382.57,0.00018819,2]
[378717573,1754989850538,-1743.77,0.00018819,2]
[378717575,1754989850547,-9176.97,0.00018819,2]
[378717577,1754989850556,-460.0,0.00018819,2]
[378717579,1754989850565,-460.0,0.00018819,2]
[378717581,1754989850574,-460.0,0.00018819,2]
[378717583,1754989850583,-460.0,0.00018819,2]
[378717585,1754989850593,-460.0,0.00018819,2]
[378717587,1754989850602,-460.02790009,0.00018819,2]
[378717589,1754989850611,-460.0,0.00018819,2]
[378717591,1754989850620,-555.37104502,0.00018819,2]
[378717593,1754989850630,-880.3,0.00018819,2]
[378717595,1754989850639,-387.8399338,0.00018819,2]
[378717597,1754989850648,-460.0,0.00018819,2]
[378717599,1754989850658,-224.77094593,0.00018819,2]
[378717601,1754989850669,-2946.27,0.00018819,2]
[378717603,1754989850679,-460.0,0.00018819,2]
[378717605,1754989850691,-598.93,0.00018819,2]
[378717607,1754989850700,-460.0,0.00018819,2]
[378717609,1754989850709,-460.0,0.00018819,2]
[378717611,1754989850719,-460.0,0.00018819,2]
[378717613,1754989850730,-151.0,0.00018819,2]
[378717615,1754989850739,-460.0,0.00018819,2]
[378717617,1754989850749,-460.0,0.00018819,2]
[378717619,1754989850759,-460.0,0.00018819,2]
[378717621,1754989850769,-460.0,0.00018819,2]
[378717623,1754989850778,-460.0,0.00018819,2]
[378717625,1754989850787,-460.0,0.00018819,2]
[378717627,1754989850796,-460.0,0.00018819,2]
[378717629,1754989850806,-460.0,0.00018819,2]
[378717631,1754989850815,-461.65659484,0.00018819,2]
[378717633,1754989850824,-460.0,0.00018819,2]
[378717634,1754989850833,-462.810219,0.00018819,2]
[378717636,1754989850843,-168.821481,0.00018819,2]
[378717639,1754989850853,-460.0,0.00018819,2]
[378717641,1754989850862,-4712.31,0.00018819,2]
[378717643,1754989850873,-2191.98,0.00018819,2]
[378717645,1754989850882,-460.0,0.00018819,2]
[378717647,1754989850892,-461.70575592,0.00018819,2]
[378717648,1754989850901,-460.0,0.00018819,2]
[378717651,1754989850912,-460.0,0.00018819,2]
[378717653,1754989850921,-460.0,0.00018819,2]
[378717655,1754989850931,-460.0,0.00018819,2]
[378717657,1754989850940,-460.0,0.00018819,2]
[378717659,1754989850950,-460.0,0.00018819,2]
[378717661,1754989850959,-826.58,0.00018819,2]
[378717663,1754989850968,-462.63785801,0.00018819,2]
[378717665,1754989850977,-462.04664803,0.00018819,2]
[378717667,1754989850987,-590.73,0.00018819,2]
[378717669,1754989850996,-460.0,0.00018819,2]
[378717671,1754989851005,-460.0,0.00018819,2]
[378717673,1754989851014,-460.0,0.00018819,2]
[378717675,1754989851025,-722.38,0.00018819,2]
[378717677,1754989851035,-771.5,0.00018819,2]
[378717679,1754989851045,-460.0,0.00018819,2]
[378717681,1754989851054,-460.0,0.00018819,2]
[378717683,1754989851063,-460.0,0.00018819,2]
[378717685,1754989851073,-461.54751789,0.00018819,2]
[378717687,1754989851082,-1280.88,0.00018819,2]
[378717689,1754989851091,-460.0,0.00018819,2]
[378717690,1754989851100,-460.0,0.00018819,2]
[378717692,1754989851109,-460.0,0.00018819,2]
[378717694,1754989851119,-460.0,0.00018819,2]
[378717696,1754989851128,-335.04918701,0.00018819,2]
[378717698,1754989851137,-4170.90169563,0.0001882,2]
[378717700,1754989851146,-168.0,0.00018822,2]
[378717702,1754989851155,-168.0,0.00018859,2]
[378717704,1754989851164,-152.283643,0.00018893,2]
[378717706,1754989851174,-527.48,0.00018899,2]
[378717708,1754989851183,-500.0,0.00018899,2]
[378717710,1754989851193,-151.0,0.000189,2]
[378717712,1754989851203,-151.0,0.000189,2]
[378717715,1754989851213,-151.0,0.000189,2]
[378717717,1754989851223,-151.0,0.000189,2]
[378717719,1754989851232,-151.0,0.000189,2]
[378717721,1754989851242,-2703.00304481,0.000189,2]
[378717723,1754989851251,-200.0,0.00018903,15]
[378717725,1754989851261,-200.0,0.00018903,15]
[378717727,1754989851271,-200.0,0.00018903,15]
[378717729,1754989851280,-200.0,0.00018903,15]
[378717731,1754989851289,-160.0,0.00018906,3]
[378717733,1754989851299,-168.0,0.00018907,2]
[378717735,1754989851309,-576.0,0.00018917,2]
[378717737,1754989851318,-2095.32,0.00018917,2]
[378717739,1754989851327,-463.3000688,0.00018917,2]
[378717741,1754989851336,-1918.85,0.00018917,2]
[378717743,1754989851345,-2635.68,0.00018917,2]
[378717745,1754989851354,-1506.4,0.00018917,2]
[378717747,1754989851364,-460.0,0.00018917,2]
[378717749,1754989851373,-460.0,0.00018917,2]
[378717750,1754989851382,-1237.41,0.00018917,2]
[378717752,1754989851392,-460.0,0.00018917,2]
[378717754,1754989851401,-460.0,0.00018917,2]
[378717756,1754989851410,-3087.66,0.00018917,2]
[378717758,1754989851420,-460.0,0.00018917,2]
[378717760,1754989851429,-460.0,0.00018917,2]
[378717762,1754989851439,-484.76315875,0.00018917,2]
[378717764,1754989851448,-3102.53,0.00018917,2]
[378717766,1754989851457,-460.0,0.00018917,2]
[378717768,1754989851466,-151.0,0.00018918,2]
[378717770,1754989851476,-460.0,0.00018918,2]
[378717772,1754989851485,-460.0,0.00018918,2]
[378717774,1754989851495,-460.0,0.00018918,2]
[378717776,1754989851504,-1285.31,0.00018918,2]
[378717778,1754989851515,-1061.43,0.00018918,2]